fUST/lending_fUST_20241103
["ID","MTS","AMOUNT","RATE_DAILY","PERIOD"]
[341190001,1730580638460,-171.690089,0.00025399,2]
[341190002,1730580638470,-500.0,0.00025591,2]
[341190003,1730580638480,-164.42203035,0.00025591,2]
[341190004,1730580638491,-462.51188448,0.00025591,2]
[341190005,1730580638503,-5000.0,0.00025591,2]
[341190006,1730580638513,-702.35008518,0.00025591,2]
[341190007,1730580638526,-4297.64991482,0.00025591,2]
[341190008,1730580638536,-295.82611003,0.00025591,2]
[341190009,1730580638550,-79.11552586,0.00025591,2]
[341190010,1730580638560,-921.04359074,0.00025592,2]
[341190011,1730580638924,-2120.35696102,0.00025592,2]
[341190019,1730580640206,-2535.79298315,0.00025592,2]
[341190020,1730580640261,-6201.3,0.00025592,2]
[341190021,1730580640319,-713.95701685,0.00025592,2]
[341190035,1730580643161,-12407.54944824,0.00025592,2]
[341190036,1730580643171,-225.90625826,0.000256,2]
[341190037,1730580643182,-500.0,0.000256,2]
[341190038,1730580643192,-171.690089,0.00025833,2]
[341190039,1730580643202,-213.633233,0.000259,2]
[341190040,1730580643213,-166.727898,0.00025914,2]
[341190041,1730580643222,-171.690089,0.00026266,2]
[341190042,1730580643232,-151.5449052,0.00026356,2]
[341190043,1730580643242,-500.0,0.0002649,2]
[341190044,1730580643254,-316.9495698,0.00026552,2]
[341190045,1730580643264,-420.0,0.00026671,2]
[341190047,1730580643273,-160.134,0.0002675,2]
[341190049,1730580643283,-160.218,0.0002691,31]
[341190051,1730580643292,-166.727898,0.00026994,2]
[341190052,1730580643302,-360.0,0.00027071,2]
[341190053,1730580643311,-160.385,0.0002758,30]
[341190054,1730580643320,-316.9495698,0.00027805,2]
[341190055,1730580643329,-907.86402669,0.00027852,2]
[341190056,1730580643338,-2243.911,0.00028586,2]
[341190057,1730580643347,-587.0,0.00028906,2]
[341190058,1730580643356,-316.9495698,0.00029057,2]
[341190059,1730580643365,-5000.0,0.00029808,2]
[341190060,1730580643376,-240.264925,0.00029809,2]
[341190061,1730580643386,-1949.397408,0.00029809,2]
[341190062,1730580643397,-173.61111111,0.0002999,2]
[341190063,1730580643407,-188.38934552,0.00029999,2]
[341190064,1730580643416,-175.60344775,0.00029999,2]
[341190065,1730580643425,-189.60497986,0.00029999,2]
[341190066,1730580643434,-455.91764934,0.00029999,2]
[341190067,1730580643444,-316.214,0.0003,2]
[341190068,1730580643454,-151.0,0.0003,120]
[341190069,1730580643463,-286.806,0.0003,2]
[341190070,1730580643472,-211.0,0.0003,2]
[341190071,1730580643482,-224.49,0.00030106,3]
[341190072,1730580643491,-673.51,0.00030106,3]
[341190073,1730580643501,-5000.0,0.00030124,2]
[341190074,1730580643510,-6024.2,0.00030126,10]
[341190075,1730580643519,-10483.72,0.00030126,10]
[341190076,1730580643531,-5000.0,0.00030135,2]
[341190077,1730580643541,-500.0,0.00030136,4]
[341190078,1730580643550,-500.0,0.00030136,4]
[341190079,1730580643560,-500.0,0.00030136,4]
[341190080,1730580643570,-500.0,0.00030136,4]
[341190081,1730580643579,-500.0,0.00030136,4]
[341190082,1730580643588,-500.0,0.00030136,4]
[341190083,1730580643600,-500.0,0.00030136,4]
[341190084,1730580643609,-500.0,0.00030136,4]
[341190085,1730580643618,-479.79454138,0.00030136,4]
[341190086,1730580643628,-191.14604642,0.00030136,4]
[341190087,1730580643639,-499.56,0.00030136,4]
[341190088,1730580643648,-800.98,0.00030136,4]
[341190089,1730580643657,-500.0,0.00030136,4]
[341190090,1730580643667,-500.0,0.00030136,4]
[341190091,1730580643678,-923.53,0.00030136,4]
[341190092,1730580643687,-1004.72,0.00030136,4]
[341190093,1730580643697,-510.01,0.00030136,4]
[341190094,1730580643706,-1390.26,0.00030136,4]
[341190095,1730580643715,-3059.61,0.00030136,3]
[341190096,1730580643725,-1473.47,0.00030136,4]
[341190097,1730580643735,-500.0,0.00030136,4]
[341190098,1730580643745,-500.0,0.00030136,4]
[341190099,1730580643754,-508.47,0.00030136,4]
[341190100,1730580643764,-511.243956,0.00030136,4]
[341190101,1730580643773,-500.0,0.00030136,4]
[341190102,1730580643783,-6024.2,0.00030163,10]
[341190103,1730580643792,-500.0,0.00030173,2]
[341190104,1730580643802,-501.30052294,0.00030173,5]
[341190105,1730580643811,-416.38628456,0.00030173,5]
[341190106,1730580643820,-500.0,0.00030173,5]
[341190107,1730580643829,-500.0,0.00030173,5]
[341190108,1730580643839,-500.0,0.00030173,5]
[341190109,1730580643848,-151.0,0.0003018,2]
[341190110,1730580643857,-240.264925,0.00030181,2]
[341190111,1730580643866,-1949.397408,0.00030181,2]
[341190112,1730580643876,-316.9495698,0.0003031,2]
[341190113,1730580643885,-5000.0,0.00030408,2]
[341190114,1730580643896,-500.0,0.0003041,4]
[341190115,1730580643905,-500.0,0.0003041,4]
[341190116,1730580643915,-500.0,0.0003041,4]
[341190117,1730580643924,-500.0,0.0003041,4]
[341190118,1730580643933,-430.39667856,0.0003041,4]
[341190119,1730580643943,-500.0,0.0003041,4]
[341190120,1730580643952,-500.0,0.0003041,4]
[341190121,1730580643961,-800.98,0.0003041,4]
[341190122,1730580643971,-151.0,0.0003041,2]
[341190123,1730580643980,-500.0,0.0003041,4]
[341190124,1730580643989,-500.0,0.0003041,4]
[341190125,1730580643998,-923.53,0.0003041,4]
[341190126,1730580644105,-1004.72,0.0003041,4]
[341190127,1730580644115,-510.01,0.0003041,4]
[341190128,1730580644125,-1390.26,0.0003041,4]
[341190129,1730580644135,-3059.61,0.0003041,3]
[341190130,1730580644144,-1473.47,0.0003041,4]
[341190131,1730580644153,-500.0,0.0003041,4]
[341190132,1730580644162,-500.0,0.0003041,4]
[341190133,1730580644172,-508.47,0.0003041,4]
[341190134,1730580644181,-500.0,0.0003041,4]
[341190135,1730580644190,-500.0,0.00030473,5]
[341190136,1730580644200,-5000.0,0.00030553,2]
[341190137,1730580644209,-240.264925,0.00030554,2]
[341190138,1730580644219,-1949.397408,0.00030554,2]
[341190139,1730580644230,-157.45980935,0.00030583,2]
[341190140,1730580644240,-5000.0,0.00030683,2]
[341190141,1730580644250,-500.0,0.00030684,4]
[341190142,1730580644259,-500.0,0.00030684,4]
[341190143,1730580644268,-500.0,0.00030684,4]
[341190144,1730580644277,-500.0,0.00030684,4]
[341190145,1730580644286,-500.0,0.00030684,4]
[341190146,1730580644296,-500.0,0.00030684,4]
[341190147,1730580644306,-800.98,0.00030684,4]
[341190148,1730580644316,-151.0,0.00030684,2]
[341190149,1730580644326,-500.0,0.00030684,4]
[341190150,1730580644335,-500.0,0.00030684,4]
[341190151,1730580644344,-923.53,0.00030684,4]
[341190152,1730580644353,-1004.72,0.00030684,4]
[341190153,1730580644363,-510.01,0.00030684,4]
[341190154,1730580644372,-1390.26,0.00030684,4]
[341190155,1730580644382,-3059.61,0.00030684,3]
[341190156,1730580644391,-1473.47,0.00030684,4]
[341190157,1730580644399,-500.0,0.00030684,4]
[341190158,1730580644408,-500.0,0.00030684,4]
[341190159,1730580644418,-508.47,0.00030684,4]
[341190160,1730580644427,-500.0,0.00030684,4]
[341190161,1730580644435,-160.0,0.00030898,10]
[341190162,1730580644445,-5000.0,0.00030898,2]
[341190163,1730580644454,-160.0,0.00030899,10]
[341190164,1730580644463,-151.0,0.00030899,2]
[341190165,1730580644472,-5000.0,0.00030899,2]
[341190166,1730580644482,-5000.0,0.00030899,2]
[341190167,1730580644491,-5000.0,0.00030899,2]
[341190168,1730580644500,-1469.94844837,0.00030899,2]
[341190174,1730580646228,-3530.05155163,0.00030899,2]
[341190175,1730580646240,-9263.01547921,0.000309,2]
[341190176,1730580723731,159.369084,0.00013973,2]
[341190584,1730581209337,165.168864,0.00013973,2]
[341190585,1730581400969,2138.55765109,0.00033578,50]
[341190597,1730581755859,159.369084,0.00013973,2]
[341190651,1730581832379,-157.80967,0.00026143,2]
[341190653,1730581832393,-300.115389,0.00026167,2]
[341190655,1730581832403,-43.434941,0.00026676,2]
[341190658,1730581832415,-1169.2966276,0.00026676,2]
[341190660,1730581832425,-300.115389,0.00026852,2]
[341190662,1730581832434,-169.3276102,0.00026939,2]
[341190664,1730581832444,-300.115389,0.00027537,2]
[341190666,1730581832454,-300.0,0.0002762,2]
[341190667,1730581832464,-300.0,0.0002762,2]
[341190668,1730581832474,-1099.17855398,0.00027621,2]
[341190669,1730581832489,-3466.68777035,0.00027621,2]
[341190683,1730581832672,-434.13367567,0.00027621,2]
[341190685,1730581832681,-2361.54632433,0.00027622,2]
[341190813,1730581838603,-22538.45367567,0.00027622,2]
[341190814,1730581838613,-160.79384877,0.00027937,2]
[341190815,1730581838622,-749.57313726,0.00028037,2]
[341190816,1730581838631,-4760.17711412,0.00028037,2]
[341190817,1730581838641,-175.722848,0.00028578,2]
[341190818,1730581838651,-182.69114483,0.000286,2]
[341190819,1730581838660,-500.0,0.000286,2]
[341190820,1730581838670,-178.27664286,0.000286,2]
[341190821,1730581838682,-321.72335714,0.000286,2]
[341190822,1730581838691,-500.0,0.000286,2]
[341190823,1730581838701,-569.45764943,0.000286,2]
[341190824,1730581838711,-500.0,0.000286,2]
[341190825,1730581838720,-452.78630823,0.000286,2]
[341190826,1730581838730,-500.0,0.000286,2]
[341190827,1730581838739,-500.0,0.000286,2]
[341190828,1730581838748,-500.0,0.000286,2]
[341190829,1730581838758,-500.0,0.000286,2]
[341190830,1730581838768,-500.0,0.000286,2]
[341190831,1730581838778,-500.0,0.000286,2]
[341190832,1730581838787,-500.0,0.000286,2]
[341190833,1730581838797,-438.37549323,0.00028601,2]
[341190834,1730581838806,-175.722848,0.00028602,2]
[341190835,1730581838816,-175.722848,0.00028626,2]
[341190836,1730581838825,-175.722848,0.0002865,2]
[341190837,1730581838834,-5000.0,0.00028671,2]
[341190838,1730581838843,-175.722848,0.00028674,2]
[341190839,1730581838852,-175.722848,0.00028697,2]
[341190840,1730581838863,-175.722848,0.00028721,2]
[341190841,1730581838873,-500.0,0.00029386,2]
[341190842,1730581838889,-192.88367099,0.00029386,5]
[341190843,1730581838903,-720.874121,0.00029809,2]
[341190844,1730581838912,-420.0,0.00029841,2]
[341190845,1730581838922,-3000.0,0.000299,2]
[341190846,1730581838931,-3000.0,0.000299,2]
[341190847,1730581838941,-5000.0,0.00029909,2]
[341190848,1730581838951,-3000.0,0.0002991,2]
[341190849,1730581838960,-3000.0,0.0002991,2]
[341190850,1730581838970,-319.14235454,0.00029919,2]
[341190851,1730581838980,-3000.0,0.0002992,2]
[341190852,1730581838989,-3000.0,0.0002992,2]
[341190853,1730581838999,-3000.0,0.0002993,2]
[341190854,1730581839008,-3000.0,0.0002993,2]
[341190855,1730581839018,-448.98,0.0002993,3]
[341190856,1730581839028,-5000.0,0.00029939,2]
[341190857,1730581839037,-3000.0,0.0002994,2]
[341190858,1730581839047,-3000.0,0.0002994,2]
[341190859,1730581839056,-6076.62,0.0002994,10]
[341190860,1730581839066,-8351.44,0.00029949,10]
[341190861,1730581839076,-3000.0,0.0002995,2]
[341190862,1730581839085,-3000.0,0.0002995,2]
[341190863,1730581839094,-5000.0,0.00029959,2]
[341190864,1730581839104,-3000.0,0.0002996,2]
[341190865,1730581839113,-3000.0,0.0002996,2]
[341190866,1730581839123,-151.0,0.0002996,2]
[341190867,1730581839132,-1669.10732596,0.0002997,2]
[341190868,1730581839145,-1330.89267404,0.0002997,2]
[341190869,1730581839154,-3000.0,0.0002997,2]
[341190870,1730581839163,-5000.0,0.00029977,2]
[341190871,1730581839173,-3000.0,0.0002998,2]
[341190872,1730581839182,-3000.0,0.0002998,2]
[341190873,1730581839192,-3000.0,0.0002999,2]
[341190874,1730581839201,-3000.0,0.0002999,2]
[341190875,1730581839211,-151.0,0.0002999,2]
[341190876,1730581839220,-2131.42663492,0.00029999,2]
[341190972,1730581843491,-2868.57336508,0.00029999,2]
[341190973,1730581843501,-245.8345,0.0003,2]
[341190974,1730581843511,-3000.0,0.0003,2]
[341190975,1730581843521,-3000.0,0.0003,2]
[341190976,1730581843531,-212.0,0.0003,2]
[341190977,1730581843540,-711.22382229,0.0003001,2]
[341190978,1730581843553,-2288.77617771,0.0003001,2]
[341190979,1730581843563,-3000.0,0.0003001,2]
[341190980,1730581843574,-4760.17711409,0.00030017,2]
[341190981,1730581843586,-4579.47808118,0.00030019,2]
[341190986,1730581863680,-420.52191882,0.00030019,2]
[341190987,1730581863691,-3000.0,0.0003002,2]
[341190988,1730581863701,-1953.21292837,0.0003002,2]
[341190989,1730581863794,-745.1595877,0.0003002,2]
[341190990,1730581863807,-301.62748393,0.0003002,2]
[341190991,1730581863817,-3000.0,0.0003003,2]
[341190992,1730581863827,-3000.0,0.0003003,2]
[341190993,1730581863836,-151.0,0.0003003,2]
[341190994,1730581863846,-2096.16464727,0.0003004,2]
[341190995,1730581863858,-903.83535273,0.0003004,2]
[341190996,1730581863868,-3000.0,0.0003004,2]
[341190997,1730581863878,-3568.28536463,0.00030049,2]
[341190998,1730581863887,-3000.0,0.0003005,2]
[341190999,1730581863897,-3000.0,0.0003005,2]
[341191000,1730581863906,-4134.431239,0.0003006,2]
[341191001,1730581863915,-3000.0,0.0003006,2]
[341191002,1730581863925,-151.0,0.0003006,2]
[341191003,1730581863935,-3000.0,0.0003007,2]
[341191004,1730581863946,-3000.0,0.0003008,2]
[341191005,1730581863955,-153.0,0.00030082,2]
[341191006,1730581863965,-153.0,0.00030082,2]
[341191007,1730581863975,-153.0,0.00030082,2]
[341191008,1730581863986,-3000.0,0.0003009,2]
[341191009,1730581863996,-3000.0,0.000301,2]
[341191010,1730581864006,-3000.0,0.0003011,2]
[341191011,1730581864015,-3000.0,0.0003012,2]
[341191012,1730581864025,-3000.0,0.0003013,3]
[341191013,1730581864035,-500.0,0.00030136,4]
[341191014,1730581864044,-500.0,0.00030136,4]
[341191015,1730581864054,-324.88143768,0.00030136,4]
[341191016,1730581864063,-500.0,0.00030136,4]
[341191017,1730581864073,-500.0,0.00030136,4]
[341191018,1730581864082,-500.0,0.00030136,4]
[341191019,1730581864092,-500.0,0.00030136,4]
[341191020,1730581864103,-700.86,0.00030136,4]
[341191021,1730581864113,-151.0,0.00030136,2]
[341191022,1730581864122,-500.0,0.00030136,4]
[341191023,1730581864132,-500.0,0.00030136,2]
[341191024,1730581864142,-500.0,0.00030136,2]
[341191025,1730581864152,-808.09,0.00030136,4]
[341191026,1730581864161,-879.13,0.00030136,4]
[341191027,1730581864171,-1216.48,0.00030136,4]
[341191028,1730581864180,-500.0,0.00030136,4]
[341191029,1730581864191,-2677.16,0.00030136,3]
[341191030,1730581864200,-500.0,0.00030136,4]
[341191031,1730581864209,-500.0,0.00030136,4]
[341191032,1730581864219,-1289.28,0.00030136,4]
[341191033,1730581864229,-500.0,0.00030136,4]
[341191034,1730581864238,-3000.0,0.0003014,3]
[341191035,1730581864248,-3000.0,0.0003015,3]
[341191036,1730581864257,-3000.0,0.0003016,3]
[341191037,1730581864268,-3000.0,0.0003017,3]
[341191038,1730581864277,-3000.0,0.0003018,3]
[341191039,1730581864287,-151.0,0.0003018,2]
[341191040,1730581864296,-720.874121,0.00030181,2]
[341191041,1730581864305,-3000.0,0.0003019,3]
[341191042,1730581864314,-3000.0,0.000302,3]
[341191043,1730581864324,-3000.0,0.0003021,3]
[341191044,1730581864333,-3000.0,0.0003022,3]
[341191045,1730581864343,-3000.0,0.0003023,3]
[341191046,1730581864352,-3000.0,0.0003024,3]
[341191047,1730581864362,-3000.0,0.0003025,3]
[341191048,1730581864372,-3000.0,0.0003026,3]
[341191049,1730581864381,-3000.0,0.0003027,3]
[341191050,1730581864392,-3000.0,0.0003028,3]
[341191051,1730581864405,-3000.0,0.0003029,3]
[341191052,1730581864415,-3000.0,0.000303,3]
[341191053,1730581864425,-3000.0,0.0003031,3]
[341191054,1730581864435,-3000.0,0.0003032,3]
[341191055,1730581864445,-3000.0,0.0003033,3]
[341191056,1730581864455,-3000.0,0.0003034,3]
[341191057,1730581864469,-3000.0,0.0003035,3]
[341191058,1730581864479,-3000.0,0.0003036,3]
[341191059,1730581864489,-3000.0,0.0003037,3]
[341191060,1730581864498,-3378.435678,0.0003038,3]
[341191061,1730581864508,-500.0,0.0003041,4]
[341191062,1730581864518,-500.0,0.0003041,4]
[341191063,1730581864617,-500.0,0.0003041,4]
[341191064,1730581864627,-500.0,0.0003041,4]
[341191065,1730581864637,-500.0,0.0003041,4]
[341191066,1730581864646,-500.0,0.0003041,4]
[341191067,1730581864657,-700.86,0.0003041,4]
[341191068,1730581864666,-393.13,0.0003041,4]
[341191069,1730581864676,-808.09,0.0003041,4]
[341191070,1730581864685,-879.13,0.0003041,4]
[341191071,1730581864699,-1216.48,0.0003041,4]
[341191072,1730581864708,-500.0,0.0003041,4]
[341191073,1730581864718,-2677.16,0.0003041,3]
[341191074,1730581864727,-500.0,0.0003041,4]
[341191075,1730581864738,-500.0,0.0003041,4]
[341191076,1730581864747,-1289.28,0.0003041,4]
[341191077,1730581864757,-500.0,0.0003041,4]
[341191078,1730581864766,-6785.28633546,0.00030488,2]
[341191079,1730581864776,-720.874121,0.00030554,2]
[341191080,1730581864785,-500.0,0.00030684,4]
[341191081,1730581864795,-500.0,0.00030684,4]
[341191082,1730581864805,-511.8,0.00030684,4]
[341191083,1730581864815,-500.0,0.00030684,4]
[341191084,1730581864824,-500.0,0.00030684,4]
[341191085,1730581864834,-500.0,0.00030684,4]
[341191086,1730581864844,-700.86,0.00030684,4]
[341191087,1730581864853,-808.09,0.00030684,4]
[341191088,1730581864863,-879.13,0.00030684,4]
[341191089,1730581864872,-1216.48,0.00030684,4]
[341191090,1730581864881,-500.0,0.00030684,4]
[341191091,1730581864890,-2677.16,0.00030684,3]
[341191092,1730581864899,-500.0,0.00030684,4]
[341191093,1730581864908,-500.0,0.00030684,4]
[341191094,1730581864918,-1289.28,0.00030684,4]
[341191095,1730581864927,-500.0,0.00030684,4]
[341191096,1730581864936,-245.8345,0.00030846,2]
[341191097,1730581864946,-77905.13021642,0.000309,2]
[341191098,1730581864955,-153.0,0.00030904,2]
[341191099,1730581864964,-286.806,0.00030923,2]
[341191100,1730581864973,-240.264925,0.00030926,2]
[341191101,1730581864983,-1949.397408,0.00030926,2]
[341191102,1730581864993,-720.874121,0.00030926,2]
[341191103,1730581865002,-545.17642851,0.00030958,4]
[341191104,1730581865011,-500.0,0.00030958,4]
[341191105,1730581865021,-500.0,0.00030958,4]
[341191106,1730581865031,-500.0,0.00030958,4]
[341191107,1730581865041,-500.0,0.00030958,4]
[341191108,1730581865050,-500.0,0.00030958,4]
[341191109,1730581865061,-700.86,0.00030958,4]
[341191110,1730581865070,-808.09,0.00030958,4]
[341191111,1730581865079,-879.13,0.00030958,4]
[341191112,1730581865088,-1216.48,0.00030958,4]
[341191113,1730581865097,-500.0,0.00030958,4]
[341191114,1730581865107,-2677.16,0.00030958,3]
[341191115,1730581865117,-500.0,0.00030958,4]
[341191116,1730581865126,-274.27,0.00030958,4]
[341191117,1730581865136,-1289.28,0.00030958,4]
[341191118,1730581865145,-500.0,0.00030958,4]
[341191119,1730581865154,-153.996106,0.00030958,2]
[341191120,1730581865164,-272.105184,0.00030958,2]
[341191121,1730581865174,-380.660848,0.00030958,2]
[341191122,1730581865184,-380.660847,0.00030958,2]
[341191123,1730581865194,-595.882846,0.00030958,2]
[341191124,1730581865204,-500.0,0.00030973,5]
[341191125,1730581865213,-200.0,0.00031,120]
[341191126,1730581865223,-267.60687698,0.00031,6]
[341191127,1730581865232,-1414.28,0.00031,14]
[341191128,1730581865240,-13264.88,0.00031,14]
[341191129,1730581865250,-500.0,0.00031232,4]
[341191130,1730581865259,-500.0,0.00031232,4]
[341191131,1730581865268,-365.52400366,0.00031232,4]
[341191132,1730581865278,-500.0,0.00031232,4]
[341191133,1730581865287,-500.0,0.00031232,4]
[341191134,1730581865298,-700.86,0.00031232,4]
[341191135,1730581865307,-808.09,0.00031232,4]
[341191136,1730581865318,-879.13,0.00031232,4]
[341191137,1730581865327,-1216.48,0.00031232,4]
[341191138,1730581865336,-500.0,0.00031232,4]
[341191139,1730581865347,-2677.16,0.00031232,3]
[341191140,1730581865366,-500.0,0.00031232,4]
[341191141,1730581865376,-1289.28,0.00031232,4]
[341191142,1730581865386,-500.0,0.00031232,4]
[341191143,1730581865400,-211.079098,0.00031288,2]
[341191144,1730581865409,-211.079098,0.00031288,2]
[341191145,1730581865418,-211.079098,0.00031288,2]
[341191146,1730581865428,-211.079098,0.00031288,2]
[341191147,1730581865438,-211.079098,0.00031288,2]
[341191148,1730581865447,-211.079098,0.00031288,2]
[341191149,1730581865456,-211.079098,0.00031288,2]
[341191150,1730581865467,-211.079098,0.00031288,2]
[341191151,1730581865478,-211.079098,0.00031288,2]
[341191152,1730581865487,-240.264925,0.00031299,2]
[341191153,1730581865497,-1949.397408,0.00031299,2]
[341191154,1730581865506,-720.874121,0.00031299,2]
[341191155,1730581865516,-153.996106,0.00031336,2]
[341191156,1730581865525,-272.105184,0.00031336,2]
[341191157,1730581865535,-380.660848,0.00031336,2]
[341191158,1730581865544,-380.660847,0.00031336,2]
[341191159,1730581865553,-595.882846,0.00031336,2]
[341191160,1730581865564,-151.0,0.0003137,120]
[341191161,1730581865573,-1200.0,0.00031417,2]
[341191162,1730581865583,-500.0,0.00031506,4]
[341191163,1730581865592,-500.0,0.00031506,4]
[341191164,1730581865601,-500.0,0.00031506,4]
[341191165,1730581865610,-500.0,0.00031506,4]
[341191166,1730581865619,-700.86,0.00031506,4]
[341191167,1730581865628,-808.09,0.00031506,4]
[341191168,1730581865637,-113.37682362,0.00031506,4]
[341191169,1730582103188,231.29062489,0.00033595,30]
[341191171,1730582251605,163.915216,0.00013973,2]
[341191205,1730582915985,162.210416,0.00013973,2]
[341191206,1730582929392,5206.13679754,0.00014,2]
[341191207,1730582941410,151.72230327,0.0002,2]
[341191260,1730583032532,-360.5,0.00020373,2]
[341191269,1730583038621,-139.5,0.00020373,2]
[341191270,1730583038632,-300.0,0.00020376,2]
[341191271,1730583038642,-300.0,0.00020376,2]
[341191272,1730583038656,-223.39964818,0.00020376,2]
[341191273,1730583038666,-605.86514536,0.00020376,2]
[341191275,1730583038675,-292.25032882,0.00020377,2]
[341191277,1730583038685,-35306.64153999,0.00020377,2]
[341191278,1730583038698,-44174.15417812,0.00020377,2]
[341191280,1730583038709,-482.5430759,0.00020614,2]
[341191281,1730583038719,-495.56767745,0.000219,2]
[341191283,1730583038728,-11746.65744445,0.00022,30]
[341191285,1730583038740,-420.0,0.00022179,2]
[341191286,1730583038751,-587.0,0.00024141,2]
[341191287,1730583038762,-9388.41,0.0002499,10]
[341191288,1730583038771,-6847.10752815,0.00025,2]
[341191289,1730583038781,-303.05757821,0.00025,2]
[341191290,1730583038790,-303.05757821,0.0002525,2]
[341191291,1730583038799,-303.05757821,0.000255,2]
[341191292,1730583038809,-454.40745535,0.0002575,2]
[341191293,1730583038819,-1330.4166275,0.0002721,2]
[341191294,1730583038829,-157.809671,0.00027254,2]
[341191295,1730583038839,-935.535738,0.00027326,2]
[341191296,1730583038848,-246.338102,0.0002781,2]
[341191297,1730583038858,-246.338102,0.00027886,2]
[341191298,1730583038867,-246.338102,0.00027962,2]
[341191299,1730583038877,-935.535738,0.00028011,2]
[341191300,1730583038886,-246.338102,0.00028039,2]
[341191301,1730583038896,-299.5780636,0.00028049,2]
[341191302,1730583038905,-246.338102,0.00028115,2]
[341191303,1730583038915,-246.338102,0.00028191,2]
[341191304,1730583038924,-246.338102,0.00028267,2]
[341191305,1730583038933,-246.338102,0.00028344,2]
[341191306,1730583038943,-246.338102,0.0002842,2]
[341191307,1730583038952,-246.338102,0.00028496,2]
[341191308,1730583038962,-246.338102,0.00028572,2]
[341191309,1730583038971,-11.2183913,0.00028649,2]
[341191310,1730583038984,-235.1197107,0.00028649,2]
[341191311,1730583038994,-935.535738,0.00028696,2]
[341191312,1730583039003,-246.338102,0.00028725,2]
[341191313,1730583039015,-246.338102,0.00028801,2]
[341191314,1730583039026,-668.90354999,0.00028807,2]
[341191315,1730583039036,-6722.18168494,0.00028844,2]
[341191316,1730583039050,-864.68131979,0.00028844,2]
[341191350,1730583040608,-403.06145724,0.00028844,2]
[341191505,1730583043617,-10174.30642967,0.00028844,2]
[341191518,1730583046666,-6735.76910836,0.00028844,2]
[341191519,1730583046676,-246.338102,0.00028878,2]
[341191520,1730583046686,-246.338102,0.00028954,2]
[341191521,1730583046696,-700.0,0.00029,2]
[341191522,1730583046707,-24579.66418555,0.00029,30]
[341191523,1730583046716,-246.338102,0.0002903,2]
[341191524,1730583046726,-246.338102,0.00029106,2]
[341191525,1730583046735,-246.338102,0.00029183,2]
[341191526,1730583046745,-246.338102,0.00029259,2]
[341191527,1730583046755,-668.90354998,0.0002958,2]
[341191528,1730583046766,-500.0,0.00029973,5]
[341191529,1730583046775,-237.1605,0.0003,2]
[341191530,1730583046785,-212.0,0.0003,2]
[341191531,1730583046796,-29329.15792036,0.0003,15]
[341191532,1730583046805,-194.30203911,0.00030036,2]
[341191533,1730583046815,-525.64,0.00030136,4]
[341191534,1730583046825,-606.07,0.00030136,4]
[341191535,1730583046835,-691.25,0.00030136,4]
[341191536,1730583046844,-500.0,0.00030136,4]
[341191537,1730583046854,-963.04,0.00030136,4]
[341191538,1730583046864,-1020.68,0.00030136,4]
[341191539,1730583046874,-2119.41,0.00030136,3]
[341191540,1730583046884,-500.0,0.00030136,4]
[341191541,1730583046894,-500.0,0.00030136,4]
[341191542,1730583046904,-500.0,0.00030279,4]
[341191543,1730583046914,-500.0,0.00030279,4]
[341191544,1730583046923,-500.0,0.00030279,4]
[341191545,1730583046932,-500.0,0.00030279,4]